[Event "GM ZIA Smirity-A 2025"]
[Site "Dhaka"]
[Date "2025.02.19"]
[Round "5.3"]
[White "Abu Sufian, Shakil"]
[Black "Wadifa, Ahmed"]
[Result "0-1"]
[Annotator "RC"]
[ECO "B55"]
[WhiteElo "2224"]
[BlackElo "2053"]
[PlyCount "85"]
[EventDate "2025.02.17"]
[EventType "swiss"]
[EventCountry "BAN"]
[SourceTitle "playchess.com"]
[Source "ChessBase"]
[SourceQuality "1"]
[TimeControl "5400+30"]

1. e4 {[%emt 0:06:01]} c5 {[%emt 0:00:09]} 2. Nf3 {[%emt 0:02:26]} d6 {[%emt 0:00:26]} 3. d4 {[%emt 0:00:07]} cxd4 {[%emt 0:00:06]} 4. Nxd4 {[%emt 0:00:06]} Nf6 {[%emt 0:00:06]} 5. f3 {[%emt 0:00:07]} e5 {[%emt 0:00:12]} 6. Nb3 {[%emt 0:00:08]} d5 {[%emt 0:00:59]} 7. Bg5 {[%emt 0:00:11]} Be6 {[%emt 0:02:24]} 8. Bxf6 {[%emt 0:00:30]} gxf6 {[%emt 0:00:10]} 9. exd5 {[%emt 0:00:06]} Qxd5 {[%emt 0:00:47]} 10. Qxd5 {[%emt 0:00:08]} Bxd5 {[%emt 0:00:05]} 11. Nc3 {[%emt 0:00:11]} Be6 {[%emt 0:00:24]} 12. O-O-O {[%emt 0:00:15]} Nc6 {[%emt 0:00:39]} 13. Bb5 {[%emt 0:00:44]} Rc8 {[%emt 0:00:27]} 14. Nd5 {[%emt 0:03:28]} Bh6+ {[%emt 0:06:01]} 15. Kb1 {[%emt 0:00:21]} f5 {[%emt 0:00:13]} 16. Rhe1 {[%emt 0:19:41]} Kf8 {[%emt 0:03:57]} 17. Bxc6 {[%emt 0:00:40]} bxc6 {[%emt 0:00:10]} 18. Nc3 {[%emt 0:00:46]} f6 {[%emt 0:10:37]} 19. Nc5 {[%emt 0:00:42]} Ke7 {[%emt 0:00:31]} 20. N3a4 {[%emt 0:08:43]} Rhd8 {[%emt 0:09:28]} 21. Nxe6 {[%emt 0:02:11]} Kxe6 {[%emt 0:00:43]} 22. Nc5+ {[%emt 0:00:04]} Ke7 {[%emt 0:01:28]} 23. Nb7 {[%emt 0:00:57]} Rd2 {[%emt 0:10:08]} 24. Rxd2 {[%emt 0:04:54]} Bxd2 {[%emt 0:00:10]} 25. Rd1 {[%emt 0:00:06]} Rc7 {[%emt 0:01:12]} 26. Rxd2 {[%emt 0:01:57]} Rxb7 {[%emt 0:00:02]} 27. c4 {[%emt 0:00:31]} Ke6 {[%emt 0:07:54]} 28. Kc2 {[%emt 0:08:50]} e4 {[%emt 0:09:03]} 29. f4 {[%emt 0:00:28]} h5 {[%emt 0:00:39]} 30. Kc3 {[%emt 0:02:31]} Rd7 {[%emt 0:03:02]} 31. Rxd7 {[%emt 0:00:43]} Kxd7 {[%emt 0:00:02]} 32. b4 {[%emt 0:00:17]} c5 {[%emt 0:09:12]} 33. a3 {[%emt 0:13:14]} Kc6 {[%emt 0:00:19]} 34. h3 {[%emt 0:01:13]} Kb6 {[%emt 0:00:14]} 35. g3 {[%emt 0:00:50]} a6 {[%emt 0:00:07]} 36. Kd2 {[%emt 0:02:10]} cxb4 {[%emt 0:00:10]} 37. axb4 {[%emt 0:00:01]} a5 {[%emt 0:00:00]} 38. bxa5+ {[%emt 0:00:09]} Kxa5 {[%emt 0:00:08]} 39. Ke3 {[%emt 0:00:02]} Kb6 {[%emt 0:00:14]} 40. g4 {[%emt 0:00:48]} fxg4 {[%emt 0:00:17]} 41. hxg4 {[%emt 0:00:04]} hxg4 {[%emt 0:00:07]} 42. f5 {[%emt 0:04:10]} g3 {[%emt 0:00:04]} 43. Kd4 {[%emt 0:20:29]} 0-1

[Event "GM ZIA Smirity-A 2025"]
[Site "Dhaka"]
[Date "2025.02.19"]
[Round "5.4"]
[White "Anata, Choudhury"]
[Black "Rahman, Syed Mahfuzur"]
[Result "1/2-1/2"]
[Annotator "ChessBase"]
[ECO "B01"]
[WhiteElo "2206"]
[BlackElo "2113"]
[PlyCount "123"]
[EventDate "2025.02.17"]
[EventType "swiss"]
[EventCountry "BAN"]
[SourceTitle "playchess.com"]
[Source "ChessBase"]
[SourceQuality "1"]
[TimeControl "5400+30"]

1. e4 {[%emt 0:36:37]} d5 {[%emt 0:01:23]} 2. exd5 {[%emt 0:00:11]} Qxd5 {[%emt 0:00:03]} 3. Nc3 {[%emt 0:00:13]} Qa5 {[%emt 0:00:09]} 4. d4 {[%emt 0:00:43]} c6 {[%emt 0:00:05]} 5. Nf3 {[%emt 0:00:11]} Nf6 {[%emt 0:00:06]} 6. Bc4 {[%emt 0:00:08]} Bf5 {[%emt 0:00:05]} 7. Ne5 {[%emt 0:00:10]} e6 {[%emt 0:00:13]} 8. g4 {[%emt 0:00:23]} Bg6 {[%emt 0:01:26]} 9. h4 {[%emt 0:00:11]} Nbd7 {[%emt 0:01:01]} 10. Nxd7 {[%emt 0:00:12]} Nxd7 {[%emt 0:00:13]} 11. h5 {[%emt 0:00:08]} Be4 {[%emt 0:00:09]} 12. O-O {[%emt 0:00:10]} Bd5 {[%emt 0:00:14]} 13. Nxd5 {[%emt 0:00:21]} cxd5 {[%emt 0:00:26]} 14. Bd3 {[%emt 0:00:13]} Bd6 {[%emt 0:03:00]} 15. Be3 {[%emt 0:06:15]} g6 {[%emt 0:02:17]} 16. h6 {[%emt 0:00:16]} O-O {[%emt 0:03:54]} 17. f4 {[%emt 0:00:40]} f5 {[%emt 0:01:26]} 18. g5 {[%emt 0:01:49]} Rac8 {[%emt 0:04:55]} 19. Qe2 {[%emt 0:00:37]} Qc7 {[%emt 0:07:25]} 20. Kg2 {[%emt 0:17:23]} Nb6 {[%emt 0:07:05]} 21. Bd2 {[%emt 0:00:44]} Rfe8 {[%emt 0:01:07]} 22. b3 {[%emt 0:00:12]} Nc4 {[%emt 0:26:42]} 23. Bxc4 {[%emt 0:24:31]} dxc4 {[%emt 0:00:08]} 24. c3 {[%emt 0:00:07]} b5 {[%emt 0:03:54]} 25. Qf3 {[%emt 0:01:21]} Re7 {[%emt 0:12:16]} 26. Rfe1 {[%emt 0:01:07]} Kf7 {[%emt 0:03:11]} 27. Re2 {[%emt 0:00:23]} Qc6 {[%emt 0:02:57]} 28. Rb1 {[%emt 0:03:48]} Qxf3+ {[%emt 0:04:56]} 29. Kxf3 {[%emt 0:00:10]} b4 {[%emt 0:00:11]} 30. bxc4 {[%emt 0:02:59]} Rxc4 {[%emt 0:00:54]} 31. cxb4 {[%emt 0:01:03]} Rxd4 {[%emt 0:00:13]} 32. Rb3 {[%emt 0:00:10]} Rc7 {[%emt 0:03:35]} 33. Be3 {[%emt 0:01:24]} Rxb4 {[%emt 0:02:02]} 34. Rd3 {[%emt 0:00:31]} Be7 {[%emt 0:04:19]} 35. Bd4 {[%emt 0:00:42]} Rd7 {[%emt 0:01:10]} 36. Red2 {[%emt 0:00:02]} Rbb7 {[%emt 0:02:29]} 37. Be5 {[%emt 0:00:31]} Rxd3+ {[%emt 0:00:49]} 38. Rxd3 {[%emt 0:00:02]} Ke8 {[%emt 0:00:09]} 39. Rc3 {[%emt 0:00:26]} Kd7 {[%emt 0:00:31]} 40. Rd3+ {[%emt 0:00:08]} Kc6 {[%emt 0:00:55]} 41. Rc3+ {[%emt 0:00:48]} Bc5 {[%emt 0:01:22]} 42. Bd4 {[%emt 0:01:52]} Rb5 {[%emt 0:00:04]} 43. a4 {[%emt 0:00:08]} Ra5 {[%emt 0:00:11]} 44. Ke3 {[%emt 0:01:43]} e5 {[%emt 0:01:55]} 45. fxe5 {[%emt 0:00:22]} Kd5 {[%emt 0:00:03]} 46. Bxc5 {[%emt 0:00:18]} Rxc5 {[%emt 0:00:07]} 47. Rd3+ {[%emt 0:00:14]} Kxe5 {[%emt 0:00:09]} 48. Rd7 {[%emt 0:00:07]} f4+ {[%emt 0:01:38]} 49. Ke2 {[%emt 0:00:07]} Kf5 {[%emt 0:00:52]} 50. Rxa7 {[%emt 0:00:11]} Kxg5 {[%emt 0:00:30]} 51. Rxh7 {[%emt 0:00:03]} Ra5 {[%emt 0:00:29]} 52. Rf7 {[%emt 0:02:24]} Rxa4 {[%emt 0:00:24]} 53. h7 {[%emt 0:00:06]} Ra2+ {[%emt 0:00:32]} 54. Kf3 {[%emt 0:00:13]} Rh2 {[%emt 0:00:35]} 55. Rxf4 {[%emt 0:00:10]} Rh3+ {[%emt 0:00:09]} 56. Kg2 {[%emt 0:00:09]} Rxh7 {[%emt 0:00:05]} 57. Ra4 {[%emt 0:00:22]} Rb7 {[%emt 0:00:12]} 58. Kg3 {[%emt 0:00:41]} Rb3+ {[%emt 0:00:03]} 59. Kg2 {[%emt 0:00:08]} Kh5 {[%emt 0:00:03]} 60. Ra8 {[%emt 0:00:10]} g5 {[%emt 0:00:03]} 61. Ra4 {[%emt 0:00:18]} g4 {[%emt 0:00:09]} 62. Ra8 {[%emt 0:00:11]} 1/2-1/2

[Event "GM ZIA Smirity-A 2025"]
[Site "Dhaka"]
[Date "2025.02.19"]
[Round "5.5"]
[White "Islam, Khandaker Aminul"]
[Black "Md Nasir Uddin"]
[Result "1-0"]
[Annotator "ChessBase"]
[ECO "A14"]
[WhiteElo "2169"]
[BlackElo "2010"]
[PlyCount "69"]
[EventDate "2025.02.17"]
[EventType "swiss"]
[EventCountry "BAN"]
[SourceTitle "playchess.com"]
[Source "ChessBase"]
[SourceQuality "1"]
[TimeControl "5400+30"]

1. Nf3 {[%emt 0:11:28]} d5 {[%emt 0:00:50]} 2. c4 {[%emt 0:00:08]} e6 {[%emt 0:00:12]} 3. g3 {[%emt 0:00:17]} Nf6 {[%emt 0:00:03]} 4. Bg2 {[%emt 0:00:01]} Be7 {[%emt 0:00:42]} 5. O-O {[%emt 0:00:12]} c5 {[%emt 0:00:37]} 6. b3 {[%emt 0:00:06]} O-O {[%emt 0:00:32]} 7. Bb2 {[%emt 0:00:02]} Nc6 {[%emt 0:00:19]} 8. e3 {[%emt 0:00:12]} a6 {[%emt 0:00:42]} 9. Qe2 {[%emt 0:00:14]} Qc7 {[%emt 0:01:23]} 10. Rc1 {[%emt 0:00:26]} h6 {[%emt 0:01:19]} 11. d4 {[%emt 0:00:34]} cxd4 {[%emt 0:00:39]} 12. cxd5 {[%emt 0:00:22]} Nxd5 {[%emt 0:00:52]} 13. Nxd4 {[%emt 0:01:02]} Nxd4 {[%emt 1:28:50]} 14. exd4 {[%emt 0:00:56]} Qd8 {[%emt 0:00:00]} 15. Nc3 {[%emt 0:00:28]} Re8 {[%emt 0:00:00]} 16. Qe4 {[%emt 0:03:27]} f5 {[%emt 0:00:00]} 17. Qf3 {[%emt 0:07:37]} Nf6 {[%emt 0:00:00]} 18. Rd1 {[%emt 0:02:10]} Rb8 {[%emt 0:00:00]} 19. d5 {[%emt 0:00:16]} e5 {[%emt 0:00:00]} 20. d6 {[%emt 0:03:09]} Bf8 {[%emt 0:00:00]} 21. Rac1 {[%emt 0:08:49]} Bd7 {[%emt 0:00:00]} 22. Qe2 {[%emt 0:05:29]} e4 {[%emt 0:00:00]} 23. Nd5 {[%emt 0:01:49]} Nxd5 {[%emt 0:00:00]} 24. Rxd5 {[%emt 0:00:04]} Rc8 {[%emt 0:00:00]} 25. Rcd1 {[%emt 0:03:41]} Qg5 {[%emt 0:00:00]} 26. h4 {[%emt 0:05:20]} Qg6 {[%emt 0:00:00]} 27. Bc1 {[%emt 0:02:32]} Rc6 {[%emt 0:00:00]} 28. Bf4 {[%emt 0:00:24]} Rec8 {[%emt 0:00:00]} 29. R5d2 {[%emt 0:01:27]} Rc1 {[%emt 0:00:00]} 30. Qe3 {[%emt 0:05:39]} Qh5 {[%emt 0:00:00]} 31. Qd4 {[%emt 0:01:39]} Rxd1+ {[%emt 0:00:00]} 32. Rxd1 {[%emt 0:00:04]} Rc2 {[%emt 0:00:00]} 33. Qd5+ {[%emt 0:04:14]} Kh7 {[%emt 0:00:00]} 34. Bxe4 {[%emt 0:02:30]} fxe4 {[%emt 0:00:00]} 35. Qxh5 {[%emt 0:00:03]} 1-0

[Event "GM ZIA Smirity-A 2025"]
[Site "Dhaka"]
[Date "2025.02.19"]
[Round "5.6"]
[White "Mohammad, Javed"]
[Black "Kazi Zarin, Tasnim"]
[Result "1-0"]
[Annotator "ChessBase"]
[ECO "D36"]
[WhiteElo "2139"]
[BlackElo "1897"]
[PlyCount "77"]
[EventDate "2025.02.17"]
[EventType "swiss"]
[EventCountry "BAN"]
[SourceTitle "playchess.com"]
[Source "ChessBase"]
[SourceQuality "1"]
[TimeControl "5400+30"]

1. d4 {[%emt 0:00:30]} Nf6 {[%emt 0:11:40]} 2. Nf3 {[%emt 0:00:00]} d5 {[%emt 0:00:28]} 3. c4 {[%emt 0:00:16]} e6 {[%emt 0:00:08]} 4. Nc3 {[%emt 0:00:32]} Nbd7 {[%emt 0:00:35]} 5. cxd5 {[%emt 0:05:38]} exd5 {[%emt 0:00:03]} 6. Bg5 {[%emt 0:00:11]} Be7 {[%emt 0:01:25]} 7. e3 {[%emt 0:00:20]} c6 {[%emt 0:00:56]} 8. Bd3 {[%emt 0:00:31]} O-O {[%emt 0:01:09]} 9. O-O {[%emt 0:01:15]} Re8 {[%emt 0:00:49]} 10. Qc2 {[%emt 0:00:34]} h6 {[%emt 0:00:19]} 11. Bf4 {[%emt 0:00:32]} Nh5 {[%emt 0:01:48]} 12. Nxd5 {[%emt 0:00:27]} Nxf4 {[%emt 0:02:39]} 13. Nxf4 {[%emt 0:00:51]} Nf6 {[%emt 0:01:01]} 14. Bc4 {[%emt 0:06:39]} Bd6 {[%emt 0:03:23]} 15. Ng6 {[%emt 0:16:34]} b5 {[%emt 0:15:39]} 16. Bb3 {[%emt 0:00:24]} Be6 {[%emt 0:00:17]} 17. Nge5 {[%emt 0:01:53]} c5 {[%emt 0:00:42]} 18. Bxe6 {[%emt 0:02:42]} Rxe6 {[%emt 0:00:23]} 19. a4 {[%emt 0:00:29]} a6 {[%emt 0:19:06]} 20. Rfd1 {[%emt 0:00:25]} Qe8 {[%emt 0:11:45]} 21. h3 {[%emt 0:05:55]} cxd4 {[%emt 0:04:16]} 22. exd4 {[%emt 0:00:13]} Rc8 {[%emt 0:01:45]} 23. Qb3 {[%emt 0:03:04]} Bxe5 {[%emt 0:04:45]} 24. Nxe5 {[%emt 0:06:06]} Nd7 {[%emt 0:00:57]} 25. Nd3 {[%emt 0:01:19]} Rd6 {[%emt 0:01:18]} 26. axb5 {[%emt 0:02:21]} axb5 {[%emt 0:00:17]} 27. Qb4 {[%emt 0:03:35]} Rd5 {[%emt 0:01:21]} 28. Re1 {[%emt 0:09:55]} Qf8 {[%emt 0:00:55]} 29. Qb3 {[%emt 0:03:13]} Rc4 {[%emt 0:01:20]} 30. Ne5 {[%emt 0:01:33]} Rcxd4 {[%emt 0:01:01]} 31. Nc6 {[%emt 0:01:28]} Rd3 {[%emt 0:00:42]} 32. Qc2 {[%emt 0:02:50]} Rd6 {[%emt 0:01:52]} 33. Ne7+ {[%emt 0:00:59]} Kh8 {[%emt 0:00:01]} 34. Nc8 {[%emt 0:04:15]} Rd2 {[%emt 0:02:56]} 35. Qc7 {[%emt 0:03:33]} R6d4 {[%emt 0:02:08]} 36. Ra8 {[%emt 0:03:42]} Kh7 {[%emt 0:02:53]} 37. Qb7 {[%emt 0:05:22]} Qb4 {[%emt 0:01:05]} 38. Ne7 {[%emt 0:00:55]} Rd1 {[%emt 0:01:14]} 39. Rh8+ {[%emt 0:08:59]} 1-0

[Event "GM ZIA Smirity-A 2025"]
[Site "Dhaka"]
[Date "2025.02.19"]
[Round "5.7"]
[White "Khan, Nazrana"]
[Black "Sajidul, Haque"]
[Result "1-0"]
[Annotator "ChessBase"]
[ECO "D26"]
[WhiteElo "1840"]
[BlackElo "2107"]
[PlyCount "159"]
[EventDate "2025.02.17"]
[EventType "swiss"]
[EventCountry "BAN"]
[SourceTitle "playchess.com"]
[Source "ChessBase"]
[SourceQuality "1"]
[TimeControl "5400+30"]

1. d4 {[%emt 0:00:06]} d5 {[%emt 0:04:52]} 2. c4 {[%emt 0:00:11]} dxc4 {[%emt 0:00:28]} 3. Nf3 {[%emt 0:00:12]} Nf6 {[%emt 0:00:07]} 4. e3 {[%emt 0:00:43]} a6 {[%emt 0:03:18]} 5. Bxc4 {[%emt 0:02:54]} b5 {[%emt 0:00:06]} 6. Bd3 {[%emt 0:04:00]} Bb7 {[%emt 0:00:11]} 7. O-O {[%emt 0:00:17]} e6 {[%emt 0:03:45]} 8. Nc3 {[%emt 0:05:27]} b4 {[%emt 0:04:51]} 9. Na4 {[%emt 0:02:01]} Nbd7 {[%emt 0:00:13]} 10. b3 {[%emt 0:01:05]} Bd6 {[%emt 0:05:49]} 11. Bb2 {[%emt 0:01:32]} O-O {[%emt 0:00:26]} 12. Qe2 {[%emt 0:05:26]} Ne4 {[%emt 0:10:57]} 13. Rfd1 {[%emt 0:03:47]} f5 {[%emt 0:01:25]} 14. Rac1 {[%emt 0:06:14]} Qe8 {[%emt 0:10:11]} 15. Ne5 {[%emt 0:06:29]} f4 {[%emt 0:12:12]} 16. Bxe4 {[%emt 0:05:03]} Bxe4 {[%emt 0:00:28]} 17. f3 {[%emt 0:01:01]} Bb7 {[%emt 0:04:07]} 18. e4 {[%emt 0:00:51]} Nb6 {[%emt 0:05:41]} 19. Nc5 {[%emt 0:04:01]} Bxe5 {[%emt 0:00:28]} 20. dxe5 {[%emt 0:01:39]} Bc6 {[%emt 0:00:01]} 21. Qe1 {[%emt 0:10:14]} a5 {[%emt 0:00:52]} 22. Bd4 {[%emt 0:01:31]} Bb5 {[%emt 0:00:50]} 23. Bf2 {[%emt 0:01:46]} Qf7 {[%emt 0:04:13]} 24. h3 {[%emt 0:04:57]} g5 {[%emt 0:02:37]} 25. Nb7 {[%emt 0:03:55]} Rfb8 {[%emt 0:02:13]} 26. Nc5 {[%emt 0:03:45]} h5 {[%emt 0:01:41]} 27. Nd3 {[%emt 0:03:54]} Kh7 {[%emt 0:01:43]} 28. Qd2 {[%emt 0:02:25]} Rg8 {[%emt 0:01:14]} 29. Qc2 {[%emt 0:03:12]} Rg7 {[%emt 0:00:46]} 30. Bxb6 {[%emt 0:03:44]} cxb6 {[%emt 0:02:08]} 31. Nf2 {[%emt 0:00:19]} Qa7 {[%emt 0:06:57]} 32. Rd6 {[%emt 0:01:13]} Re8 {[%emt 0:00:01]} 33. Qd2 {[%emt 0:00:40]} Rb7 {[%emt 0:04:53]} 34. Qd4 {[%emt 0:00:45]} Bd7 {[%emt 0:03:28]} 35. Rd1 {[%emt 0:00:54]} Re7 {[%emt 0:00:06]} 36. Nd3 {[%emt 0:02:33]} Be8 {[%emt 0:01:49]} 37. h4 {[%emt 0:00:40]} Bb5 {[%emt 0:01:23]} 38. hxg5 {[%emt 0:00:42]} Bxd3 {[%emt 0:00:13]} 39. Rxd3 {[%emt 0:01:13]} Kg6 {[%emt 0:01:02]} 40. g3 {[%emt 0:02:26]} fxg3 {[%emt 0:00:49]} 41. f4 {[%emt 0:00:48]} h4 {[%emt 0:01:09]} 42. Qe3 {[%emt 0:01:54]} b5 {[%emt 0:00:26]} 43. R3d4 {[%emt 0:00:13]} Rh7 {[%emt 0:01:19]} 44. Rxe6+ {[%emt 0:02:08]} Kf7 {[%emt 0:00:18]} 45. Red6 {[%emt 0:00:26]} Ke8 {[%emt 0:00:38]} 46. g6 {[%emt 0:01:06]} Rhd7 {[%emt 0:00:31]} 47. Kg2 {[%emt 0:01:39]} Rbc7 {[%emt 0:00:23]} 48. Kh3 {[%emt 0:01:03]} Rc3 {[%emt 0:00:33]} 49. Qd2 {[%emt 0:00:31]} g2+ {[%emt 0:00:35]} 50. Kxg2 {[%emt 0:00:17]} Rdc7 {[%emt 0:00:05]} 51. Qe2 {[%emt 0:01:24]} Rg3+ {[%emt 0:00:48]} 52. Kh2 {[%emt 0:00:13]} Rcc3 {[%emt 0:00:16]} 53. Rd8+ {[%emt 0:00:24]} Ke7 {[%emt 0:00:03]} 54. R8d7+ {[%emt 0:00:49]} Qxd7 {[%emt 0:00:02]} 55. Rxd7+ {[%emt 0:00:24]} Kxd7 {[%emt 0:00:45]} 56. Qxb5+ {[%emt 0:00:19]} Kc7 {[%emt 0:01:29]} 57. Qxa5+ {[%emt 0:00:24]} Kc6 {[%emt 0:00:01]} 58. Qa6+ {[%emt 0:00:42]} Kc5 {[%emt 0:00:26]} 59. Qd6+ {[%emt 0:00:42]} Kb5 {[%emt 0:00:01]} 60. Qd7+ {[%emt 0:00:29]} Kc5 {[%emt 0:00:46]} 61. Qe7+ {[%emt 0:00:30]} Kb5 {[%emt 0:00:41]} 62. Qxh4 {[%emt 0:00:20]} Rxg6 {[%emt 0:00:56]} 63. Qh7 {[%emt 0:00:49]} Rc2+ {[%emt 0:00:41]} 64. Kh3 {[%emt 0:00:09]} Rc3+ {[%emt 0:00:07]} 65. Kh4 {[%emt 0:00:27]} Rg2 {[%emt 0:00:08]} 66. Qd7+ {[%emt 0:00:33]} Kb6 {[%emt 0:00:52]} 67. e6 {[%emt 0:00:26]} Rc1 {[%emt 0:00:54]} 68. Kh3 {[%emt 0:00:29]} Rg6 {[%emt 0:00:29]} 69. Qd8+ {[%emt 0:00:35]} Kb7 {[%emt 0:00:23]} 70. Qd5+ {[%emt 0:00:37]} Ka6 {[%emt 0:00:39]} 71. e5 {[%emt 0:00:40]} Rc3+ {[%emt 0:00:19]} 72. Kh4 {[%emt 0:00:26]} Rg7 {[%emt 0:00:38]} 73. Qd6+ {[%emt 0:00:34]} Ka5 {[%emt 0:00:32]} 74. f5 {[%emt 0:00:36]} Rc2 {[%emt 0:00:21]} 75. Qd5+ {[%emt 0:00:21]} Kb6 {[%emt 0:00:08]} 76. Qd4+ {[%emt 0:00:15]} Ka5 {[%emt 0:00:38]} 77. Qd8+ {[%emt 0:00:31]} Rcc7 {[%emt 0:00:54]} 78. f6 {[%emt 0:00:24]} Rh7+ {[%emt 0:00:14]} 79. Kg5 {[%emt 0:00:16]} Ka6 {[%emt 0:00:22]} 80. Qxc7 {[%emt 0:00:36]} 1-0

[Event "GM ZIA Smirity-A 2025"]
[Site "Dhaka"]
[Date "2025.02.19"]
[Round "5.8"]
[White "Noshin, Anjum"]
[Black "Alam, Monjur"]
[Result "1/2-1/2"]
[Annotator "NA"]
[ECO "C10"]
[WhiteElo "2053"]
[BlackElo "1906"]
[PlyCount "114"]
[EventDate "2025.02.17"]
[EventType "swiss"]
[EventCountry "BAN"]
[SourceTitle "playchess.com"]
[Source "ChessBase"]
[SourceQuality "1"]
[TimeControl "5400+30"]

1. e4 {[%emt 1:31:00]} e6 {[%emt 0:20:10]} 2. d4 {[%emt 0:00:00]} d5 {[%emt 0:00:08]} 3. Nc3 {[%emt 0:00:00]} dxe4 {[%emt 0:00:20]} 4. Nxe4 {[%emt 0:00:00]} Bd7 {[%emt 0:00:14]} 5. Bd3 {[%emt 0:00:00]} Bc6 {[%emt 0:00:04]} 6. Nf3 {[%emt 0:00:00]} Nd7 {[%emt 0:00:10]} 7. O-O {[%emt 0:00:00]} Ngf6 {[%emt 0:00:22]} 8. Nc3 {[%emt 0:00:00]} Be7 {[%emt 0:01:12]} 9. Re1 {[%emt 0:00:00]} Bxf3 {[%emt 0:00:25]} 10. Qxf3 {[%emt 0:00:00]} c6 {[%emt 0:00:11]} 11. Be3 {[%emt 0:00:00]} O-O {[%emt 0:02:01]} 12. Rad1 {[%emt 0:00:00]} Re8 {[%emt 0:00:21]} 13. Qg3 {[%emt 0:00:00]} Nf8 {[%emt 0:05:18]} 14. Ne2 {[%emt 0:00:00]} Qd6 {[%emt 0:04:41]} 15. Qh3 {[%emt 0:00:00]} Ng6 {[%emt 0:05:33]} 16. c4 {[%emt 0:00:00]} Rad8 {[%emt 0:02:04]} 17. a3 {[%emt 0:00:00]} Qc7 {[%emt 0:01:21]} 18. b4 {[%emt 0:00:00]} a5 {[%emt 0:03:07]} 19. Bd2 {[%emt 0:00:00]} axb4 {[%emt 0:02:15]} 20. axb4 {[%emt 0:00:00]} Ra8 {[%emt 0:00:21]} 21. Ra1 {[%emt 0:00:00]} b5 {[%emt 0:03:28]} 22. cxb5 {[%emt 0:00:00]} Rxa1 {[%emt 0:00:37]} 23. Rxa1 {[%emt 0:00:00]} cxb5 {[%emt 0:00:07]} 24. Bxb5 {[%emt 0:00:00]} Rb8 {[%emt 0:00:25]} 25. Rc1 {[%emt 0:00:00]} Qd8 {[%emt 0:01:41]} 26. Qd3 {[%emt 0:00:00]} Nd5 {[%emt 0:03:22]} 27. Rb1 {[%emt 0:00:00]} Qf8 {[%emt 0:04:48]} 28. Qc4 {[%emt 0:00:22]} Rb6 {[%emt 0:03:45]} 29. Bc6 {[%emt 0:08:44]} Nxb4 {[%emt 0:04:41]} 30. Be4 {[%emt 0:01:24]} Qb8 {[%emt 0:02:18]} 31. g3 {[%emt 0:01:27]} Bd6 {[%emt 0:00:55]} 32. Bxg6 {[%emt 0:02:40]} hxg6 {[%emt 0:00:15]} 33. Bf4 {[%emt 0:00:19]} Nd5 {[%emt 0:03:26]} 34. Rxb6 {[%emt 0:00:07]} Qxb6 {[%emt 0:00:15]} 35. Bxd6 {[%emt 0:00:51]} Qxd6 {[%emt 0:00:02]} 36. Qc8+ {[%emt 0:00:25]} Qf8 {[%emt 0:00:28]} 37. Qxf8+ {[%emt 0:00:30]} Kxf8 {[%emt 0:00:01]} 38. Kg2 {[%emt 0:00:13]} Ke7 {[%emt 0:00:11]} 39. Kf3 {[%emt 0:00:05]} Kd6 {[%emt 0:00:19]} 40. h4 {[%emt 0:00:15]} Ne7 {[%emt 0:00:51]} 41. Nc3 {[%emt 0:00:15]} f6 {[%emt 0:01:28]} 42. Ke4 {[%emt 0:00:36]} Nc6 {[%emt 0:01:38]} 43. Nb5+ {[%emt 0:00:53]} Kd7 {[%emt 0:00:19]} 44. g4 {[%emt 0:00:28]} Nb4 {[%emt 0:01:08]} 45. Nc3 {[%emt 0:00:29]} Ke7 {[%emt 0:00:14]} 46. d5 {[%emt 0:01:37]} exd5+ {[%emt 0:00:19]} 47. Nxd5+ {[%emt 0:00:05]} Nxd5 {[%emt 0:00:03]} 48. Kxd5 {[%emt 0:00:13]} Kd7 {[%emt 0:00:21]} 49. f4 {[%emt 0:00:53]} Ke7 {[%emt 0:00:16]} 50. g5 {[%emt 0:01:01]} Kd7 {[%emt 0:08:38]} 51. gxf6 {[%emt 0:00:10]} gxf6 {[%emt 0:00:01]} 52. Ke4 {[%emt 0:00:10]} Ke6 {[%emt 0:00:15]} 53. f5+ {[%emt 0:00:05]} gxf5+ {[%emt 0:00:06]} 54. Kf4 {[%emt 0:00:03]} Kf7 {[%emt 0:00:22]} 55. Kxf5 {[%emt 0:00:07]} Kg7 {[%emt 0:00:01]} 56. h5 {[%emt 0:00:09]} Kh6 {[%emt 0:00:04]} 57. Kxf6 {[%emt 0:00:02]} Kxh5 {[%emt 0:00:10]} 1/2-1/2